[Event "Vojvodina Open 2024-A 2024"]
[Site "Novi Sad"]
[Date "2024.06.26"]
[Round "3.7"]
[White "Rupesh Reddy Y"]
[Black "Tippa, Aswath Srisai"]
[Result "1/2-1/2"]
[ECO "A61"]
[WhiteElo "1807"]
[BlackElo "1647"]
[Annotator "NA RC"]
[PlyCount "142"]
[EventDate "2024.06.03"]
[EventType "swiss"]
[EventCountry "SRB"]
[SourceTitle "playchess.com"]
[Source "ChessBase"]
[SourceQuality "1"]
[TimeControl "40/5400+30:900+30"]

1. d4 {[%emt 0:02:23]} Nf6 {[%emt 0:00:16]} 2. c4 {[%emt 0:00:05]} c5 {[%emt 0:00:08]} 3. d5 {[%emt 0:00:03]} e6 {[%emt 0:00:10]} 4. Nc3 {[%emt 0:00:48]} exd5 {[%emt 0:00:13]} 5. cxd5 {[%emt 0:00:10]} d6 {[%emt 0:00:09]} 6. Nf3 {[%emt 0:02:16]} g6 {[%emt 0:00:09]} 7. h3 {[%emt 0:00:10]} Bg7 {[%emt 0:00:08]} 8. Bf4 {[%emt 0:00:05]} O-O {[%emt 0:01:05]} 9. e3 {[%emt 0:00:10]} a6 {[%emt 0:00:07]} 10. a4 {[%emt 0:03:34]} Ne8 {[%emt 0:00:12]} 11. Be2 {[%emt 0:04:53]} Nd7 {[%emt 0:00:23]} 12. O-O {[%emt 0:00:15]} Ne5 {[%emt 0:00:39]} 13. e4 {[%emt 0:03:05]} Nxf3+ {[%emt 0:00:56]} 14. Bxf3 {[%emt 0:00:08]} f5 {[%emt 0:00:11]} 15. exf5 {[%emt 0:03:49]} Bxf5 {[%emt 0:00:13]} 16. Qd2 {[%emt 0:01:32]} Qf6 {[%emt 0:01:43]} 17. Bg5 {[%emt 0:10:01]} Qf7 {[%emt 0:05:39]} 18. Rae1 {[%emt 0:03:11]} Nf6 {[%emt 0:02:22]} 19. Re2 {[%emt 0:05:02]} Rae8 {[%emt 0:06:38]} 20. Rfe1 {[%emt 0:00:28]} Rxe2 {[%emt 0:02:07]} 21. Rxe2 {[%emt 0:00:29]} Re8 {[%emt 0:00:58]} 22. Bf4 {[%emt 0:07:45]} Bf8 {[%emt 0:05:36]} 23. Qe1 {[%emt 0:05:04]} Bd7 {[%emt 0:06:00]} 24. Bg5 {[%emt 0:03:15]} Bg7 {[%emt 0:03:48]} 25. Bf4 {[%emt 0:05:36]} Qf8 {[%emt 0:02:35]} 26. Bg5 {[%emt 0:05:18]} b5 {[%emt 0:03:39]} 27. Bxf6 {[%emt 0:02:45]} Bxf6 {[%emt 0:01:44]} 28. Bg4 {[%emt 0:01:36]} Bxc3 {[%emt 0:20:06]} 29. Bxd7 {[%emt 0:06:50]} Bxe1 {[%emt 0:00:42]} 30. Rxe8 {[%emt 0:00:04]} Bxf2+ {[%emt 0:00:13]} 31. Kf1 {[%emt 0:00:03]} Bd4+ {[%emt 0:00:21]} 32. Rxf8+ {[%emt 0:00:29]} Kxf8 {[%emt 0:00:09]} 33. axb5 {[%emt 0:00:04]} axb5 {[%emt 0:00:08]} 34. b3 {[%emt 0:00:13]} b4 {[%emt 0:11:28]} 35. Bb5 {[%emt 0:00:05]} Ke7 {[%emt 0:00:21]} 36. Ke2 {[%emt 0:00:04]} Kf6 {[%emt 0:00:12]} 37. Kf3 {[%emt 0:00:06]} Ke5 {[%emt 0:00:07]} 38. Bc4 {[%emt 0:00:07]} h5 {[%emt 0:00:22]} 39. Ke2 {[%emt 0:01:17]} Ke4 {[%emt 0:00:14]} 40. Kd2 {[%emt 0:00:00]} Be3+ {[%emt 0:00:00]} 41. Ke2 {[%emt 0:01:21]} Kd4 {[%emt 0:03:37]} 42. Kf3 {[%emt 0:00:17]} Bc1 {[%emt 0:01:07]} 43. Kf2 {[%emt 0:00:24]} Ke4 {[%emt 0:00:35]} 44. Ke2 {[%emt 0:00:04]} g5 {[%emt 0:00:59]} 45. Kf2 {[%emt 0:00:04]} Bb2 {[%emt 0:00:16]} 46. Ke2 {[%emt 0:00:26]} Kf4 {[%emt 0:03:02]} 47. Bd3 {[%emt 0:00:18]} Ke5 {[%emt 0:02:18]} 48. Bc4 {[%emt 0:00:06]} Ke4 {[%emt 0:00:55]} 49. Kd2 {[%emt 0:00:28]} Kd4 {[%emt 0:03:07]} 50. Ke2 {[%emt 0:00:11]} Kc3 {[%emt 0:00:29]} 51. Ke3 {[%emt 0:00:38]} Bc1+ {[%emt 0:00:09]} 52. Ke2 {[%emt 0:00:03]} g4 {[%emt 0:00:05]} 53. hxg4 {[%emt 0:00:06]} hxg4 {[%emt 0:00:07]} 54. Kf2 {[%emt 0:00:15]} Bf4 {[%emt 0:00:11]} 55. Ke2 {[%emt 0:00:04]} Kc2 {[%emt 0:00:08]} 56. Ke1 {[%emt 0:00:10]} Kc3 {[%emt 0:01:15]} 57. Ke2 {[%emt 0:00:17]} Kd4 {[%emt 0:00:07]} 58. Kf2 {[%emt 0:00:03]} Ke4 {[%emt 0:00:06]} 59. Ke2 {[%emt 0:00:03]} Be3 {[%emt 0:00:06]} 60. Kf1 {[%emt 0:00:20]} Kf4 {[%emt 0:01:19]} 61. Bd3 {[%emt 0:00:15]} Bd4 {[%emt 0:00:51]} 62. Ke2 {[%emt 0:00:07]} Bc3 {[%emt 0:01:49]} 63. Kf2 {[%emt 0:00:09]} g3+ {[%emt 0:00:22]} 64. Ke2 {[%emt 0:00:10]} Ke5 {[%emt 0:00:05]} 65. Bc4 {[%emt 0:00:03]} Ke4 {[%emt 0:00:05]} 66. Kf1 {[%emt 0:00:15]} Ke3 {[%emt 0:00:36]} 67. Kg1 {[%emt 0:00:11]} Kd2 {[%emt 0:00:29]} 68. Kf1 {[%emt 0:00:04]} Kd1 {[%emt 0:00:07]} 69. Be2+ {[%emt 0:00:04]} Kd2 {[%emt 0:00:40]} 70. Bc4 {[%emt 0:00:04]} Bd4 {[%emt 0:00:25]} 71. Bb5 {[%emt 0:00:08]} Bf2 {[%emt 0:00:28]} 1/2-1/2

[Event "Vojvodina Open 2024-A 2024"]
[Site "Novi Sad"]
[Date "2024.06.26"]
[Round "3.8"]
[White "Pantelic, Sasa"]
[Black "Popovic, Milan S"]
[Result "1/2-1/2"]
[ECO "E81"]
[WhiteElo "2237"]
[BlackElo "2374"]
[Annotator "RC"]
[PlyCount "58"]
[EventDate "2024.06.03"]
[EventType "swiss"]
[EventCountry "SRB"]
[SourceTitle "playchess.com"]
[Source "ChessBase"]
[SourceQuality "1"]
[TimeControl "40/5400+30:900+30"]

1. d4 {[%emt 0:00:02]} Nf6 {[%emt 0:00:04]} 2. c4 {[%emt 0:00:05]} g6 {[%emt 0:00:03]} 3. Nc3 {[%emt 0:00:13]} Bg7 {[%emt 0:00:04]} 4. e4 {[%emt 0:00:05]} d6 {[%emt 0:00:03]} 5. f3 {[%emt 0:00:13]} O-O {[%emt 0:00:06]} 6. Be3 {[%emt 0:00:06]} a6 {[%emt 0:00:34]} 7. Qd2 {[%emt 0:01:39]} Nbd7 {[%emt 0:00:05]} 8. Nge2 {[%emt 0:00:16]} b5 {[%emt 0:00:20]} 9. cxb5 {[%emt 0:03:46]} axb5 {[%emt 0:00:07]} 10. Nxb5 {[%emt 0:00:23]} c6 {[%emt 0:00:45]} 11. Nbc3 {[%emt 0:00:06]} e5 {[%emt 0:00:08]} 12. d5 {[%emt 0:03:52]} Nb6 {[%emt 0:17:34]} 13. dxc6 {[%emt 0:15:35]} Nc4 {[%emt 0:04:24]} 14. Qc1 {[%emt 0:00:14]} Nxe3 {[%emt 0:02:48]} 15. Qxe3 {[%emt 0:00:06]} d5 {[%emt 0:13:03]} 16. exd5 {[%emt 0:01:36]} Nxd5 {[%emt 0:01:30]} 17. Nxd5 {[%emt 0:00:14]} Qxd5 {[%emt 0:00:08]} 18. Nc3 {[%emt 0:00:12]} Qa5 {[%emt 0:15:53]} 19. Be2 {[%emt 0:11:14]} Rb8 {[%emt 0:10:13]} 20. O-O {[%emt 0:01:14]} Rxb2 {[%emt 0:01:08]} 21. Rab1 {[%emt 0:03:45]} Rc2 {[%emt 0:11:50]} 22. Rfc1 {[%emt 0:01:53]} Rxc1+ {[%emt 0:05:30]} 23. Rxc1 {[%emt 0:00:16]} Qa3 {[%emt 0:00:30]} 24. Bc4 {[%emt 0:01:23]} e4 {[%emt 0:00:21]} 25. fxe4 {[%emt 0:03:55]} Bd4 {[%emt 0:01:00]} 26. Qxd4 {[%emt 0:01:06]} Qxc1+ {[%emt 0:00:04]} 27. Kf2 {[%emt 0:00:42]} Qf4+ {[%emt 0:03:13]} 28. Kg1 {[%emt 0:00:26]} Qc1+ {[%emt 0:03:27]} 29. Kf2 {[%emt 0:00:08]} Qf4+ {[%emt 0:01:11]} 1/2-1/2

[Event "Vojvodina Open 2024-A 2024"]
[Site "Novi Sad"]
[Date "2024.06.26"]
[Round "3.9"]
[White "Kushagra Mohan"]
[Black "Masic, Predrag"]
[Result "1-0"]
[ECO "B00"]
[WhiteElo "2367"]
[BlackElo "2176"]
[Annotator "RC"]
[PlyCount "159"]
[EventDate "2024.06.03"]
[EventType "swiss"]
[EventCountry "SRB"]
[SourceTitle "playchess.com"]
[Source "ChessBase"]
[SourceQuality "1"]
[TimeControl "40/5400+30:900+30"]

1. e4 {[%emt 0:02:36]} Nc6 {[%emt 0:02:42]} 2. Nf3 {[%emt 0:00:10]} d6 {[%emt 0:00:11]} 3. d4 {[%emt 0:00:04]} Nf6 {[%emt 0:00:13]} 4. Nc3 {[%emt 0:00:06]} Bg4 {[%emt 0:00:23]} 5. d5 {[%emt 0:01:46]} Nb8 {[%emt 0:00:20]} 6. Be2 {[%emt 0:00:43]} g6 {[%emt 0:00:30]} 7. O-O {[%emt 0:00:17]} Bg7 {[%emt 0:00:11]} 8. h3 {[%emt 0:00:15]} Bxf3 {[%emt 0:00:45]} 9. Bxf3 {[%emt 0:00:01]} O-O {[%emt 0:00:38]} 10. a4 {[%emt 0:00:38]} a5 {[%emt 0:00:35]} 11. Be3 {[%emt 0:01:54]} Nbd7 {[%emt 0:01:43]} 12. Qd2 {[%emt 0:00:48]} c6 {[%emt 0:00:27]} 13. Rad1 {[%emt 0:02:11]} Qc7 {[%emt 0:00:28]} 14. Rfe1 {[%emt 0:01:18]} Nb6 {[%emt 0:10:43]} 15. Be2 {[%emt 0:04:30]} Rfe8 {[%emt 0:19:47]} 16. Bd4 {[%emt 0:02:12]} Rac8 {[%emt 0:03:52]} 17. Bf1 {[%emt 0:02:27]} Nfd7 {[%emt 0:04:05]} 18. Bxg7 {[%emt 0:02:48]} Kxg7 {[%emt 0:00:03]} 19. Qd4+ {[%emt 0:00:01]} Kg8 {[%emt 0:00:17]} 20. f4 {[%emt 0:01:28]} cxd5 {[%emt 0:04:36]} 21. exd5 {[%emt 0:00:54]} Qc5 {[%emt 0:00:32]} 22. Bb5 {[%emt 0:03:25]} Kf8 {[%emt 0:01:15]} 23. Re2 {[%emt 0:08:56]} Red8 {[%emt 0:03:17]} 24. Ne4 {[%emt 0:02:21]} Qxd4+ {[%emt 0:00:08]} 25. Rxd4 {[%emt 0:00:03]} Nc5 {[%emt 0:01:35]} 26. Ng5 {[%emt 0:05:10]} h6 {[%emt 0:00:38]} 27. Nf3 {[%emt 0:00:09]} e6 {[%emt 0:03:20]} 28. c4 {[%emt 0:02:24]} Rc7 {[%emt 0:03:49]} 29. g4 {[%emt 0:13:39]} Re7 {[%emt 0:05:22]} 30. dxe6 {[%emt 0:11:49]} Rxe6 {[%emt 0:00:39]} 31. Rc2 {[%emt 0:00:40]} Re3 {[%emt 0:05:05]} 32. Kg2 {[%emt 0:01:50]} Rd3 {[%emt 0:03:54]} 33. Rxd3 {[%emt 0:12:44]} Nxd3 {[%emt 0:00:09]} 34. Kg3 {[%emt 0:00:02]} Nc5 {[%emt 0:00:27]} 35. Nd4 {[%emt 0:00:09]} Nbxa4 {[%emt 0:01:50]} 36. f5 {[%emt 0:00:57]} Ne4+ {[%emt 0:02:55]} 37. Kf4 {[%emt 0:02:17]} Nac5 {[%emt 0:00:09]} 38. fxg6 {[%emt 0:01:13]} fxg6 {[%emt 0:00:11]} 39. Re2 {[%emt 0:00:23]} Nf6 {[%emt 0:08:27]} 40. h4 {[%emt 0:00:00]} Kf7 {[%emt 0:00:00]} 41. g5 {[%emt 0:01:44]} hxg5+ {[%emt 0:04:19]} 42. hxg5 {[%emt 0:00:05]} Nh5+ {[%emt 0:00:37]} 43. Kg4 {[%emt 0:00:41]} Rf8 {[%emt 0:01:30]} 44. Re3 {[%emt 0:06:39]} Ng7 {[%emt 0:15:38]} 45. Rf3+ {[%emt 0:00:21]} Ke7 {[%emt 0:00:37]} 46. Re3+ {[%emt 0:04:13]} Kd8 {[%emt 0:00:13]} 47. Rh3 {[%emt 0:10:01]} Nh5 {[%emt 0:00:33]} 48. Rf3 {[%emt 0:00:01]} Ke7 {[%emt 0:01:32]} 49. Re3+ {[%emt 0:00:09]} Kf7 {[%emt 0:00:57]} 50. Ne2 {[%emt 0:00:45]} Ng7 {[%emt 0:03:09]} 51. Nd4 {[%emt 0:01:38]} Nge6 {[%emt 0:01:23]} 52. Nxe6 {[%emt 0:03:20]} Nxe6 {[%emt 0:00:03]} 53. c5 {[%emt 0:00:01]} Nxc5 {[%emt 0:01:01]} 54. Bc4+ {[%emt 0:00:12]} Kg7 {[%emt 0:00:09]} 55. Re7+ {[%emt 0:00:04]} Kh8 {[%emt 0:00:07]} 56. Bf7 {[%emt 0:00:24]} Rd8 {[%emt 0:03:47]} 57. Bxg6 {[%emt 0:00:38]} Rd7 {[%emt 0:00:01]} 58. Re8+ {[%emt 0:01:37]} Kg7 {[%emt 0:00:02]} 59. Bf5 {[%emt 0:00:04]} Rc7 {[%emt 0:00:24]} 60. g6 {[%emt 0:00:05]} d5 {[%emt 0:00:44]} 61. Kg5 {[%emt 0:03:29]} Ne4+ {[%emt 0:00:17]} 62. Kf4 {[%emt 0:01:14]} Nf6 {[%emt 0:00:01]} 63. Re6 {[%emt 0:00:29]} Ng8 {[%emt 0:01:47]} 64. Ke5 {[%emt 0:00:41]} Rc5 {[%emt 0:00:48]} 65. Bd3 {[%emt 0:01:22]} Rc7 {[%emt 0:01:08]} 66. Kd6 {[%emt 0:02:01]} Rc6+ {[%emt 0:00:42]} 67. Ke5 {[%emt 0:00:01]} Rc7 {[%emt 0:00:15]} 68. Kxd5 {[%emt 0:00:15]} Nf6+ {[%emt 0:00:09]} 69. Ke5 {[%emt 0:00:25]} Rc5+ {[%emt 0:00:14]} 70. Kd4 {[%emt 0:00:01]} Rc7 {[%emt 0:00:47]} 71. Rd6 {[%emt 0:00:20]} Nd7 {[%emt 0:00:35]} 72. Rd5 {[%emt 0:00:19]} b6 {[%emt 0:00:21]} 73. Rd6 {[%emt 0:00:07]} Kh6 {[%emt 0:01:10]} 74. Bf5 {[%emt 0:00:15]} Nc5 {[%emt 0:00:39]} 75. Rxb6 {[%emt 0:00:06]} a4 {[%emt 0:00:07]} 76. Rb4 {[%emt 0:01:44]} Kg5 {[%emt 0:00:17]} 77. Rc4 {[%emt 0:00:45]} Nb3+ {[%emt 0:00:03]} 78. Kc3 {[%emt 0:00:07]} Ra7 {[%emt 0:00:35]} 79. Bc2 {[%emt 0:00:39]} Na1 {[%emt 0:00:27]} 80. Rxa4 {[%emt 0:00:49]} 1-0

[Event "Vojvodina Open 2024-A 2024"]
[Site "Novi Sad"]
[Date "2024.06.26"]
[Round "3.10"]
[White "Pranav K P"]
[Black "Rohit S"]
[Result "1/2-1/2"]
[ECO "E51"]
[WhiteElo "2223"]
[BlackElo "2359"]
[Annotator "RC"]
[PlyCount "62"]
[EventDate "2024.06.03"]
[EventType "swiss"]
[EventCountry "SRB"]
[SourceTitle "playchess.com"]
[Source "ChessBase"]
[SourceQuality "1"]
[TimeControl "40/5400+30:900+30"]

1. d4 {[%emt 0:00:02]} Nf6 {[%emt 0:00:07]} 2. c4 {[%emt 0:00:06]} e6 {[%emt 0:00:05]} 3. Nc3 {[%emt 0:00:07]} Bb4 {[%emt 0:00:06]} 4. e3 {[%emt 0:00:06]} O-O {[%emt 0:00:05]} 5. Bd2 {[%emt 0:00:09]} d5 {[%emt 0:00:28]} 6. Nf3 {[%emt 0:00:17]} b6 {[%emt 0:01:06]} 7. cxd5 {[%emt 0:00:13]} exd5 {[%emt 0:00:07]} 8. Rc1 {[%emt 0:00:10]} c5 {[%emt 0:00:31]} 9. a3 {[%emt 0:02:04]} Bxc3 {[%emt 0:01:44]} 10. Bxc3 {[%emt 0:00:18]} c4 {[%emt 0:03:00]} 11. g3 {[%emt 0:12:27]} b5 {[%emt 0:05:00]} 12. Bg2 {[%emt 0:01:26]} Ne4 {[%emt 0:07:43]} 13. O-O {[%emt 0:07:13]} a5 {[%emt 0:02:59]} 14. Nd2 {[%emt 0:04:34]} Nxc3 {[%emt 0:05:35]} 15. Rxc3 {[%emt 0:01:32]} Bb7 {[%emt 0:04:06]} 16. e4 {[%emt 0:02:41]} Ra6 {[%emt 0:21:15]} 17. a4 {[%emt 0:13:36]} b4 {[%emt 0:04:38]} 18. Rc1 {[%emt 0:00:17]} dxe4 {[%emt 0:07:57]} 19. Nxe4 {[%emt 0:02:32]} Bd5 {[%emt 0:03:47]} 20. Qh5 {[%emt 0:09:37]} f5 {[%emt 0:01:57]} 21. Nc5 {[%emt 0:02:59]} Bxg2 {[%emt 0:02:01]} 22. Kxg2 {[%emt 0:00:03]} Rc6 {[%emt 0:04:30]} 23. Rfd1 {[%emt 0:04:25]} Qd5+ {[%emt 0:01:38]} 24. Qf3 {[%emt 0:00:46]} Rd8 {[%emt 0:00:13]} 25. Qxd5+ {[%emt 0:00:55]} Rxd5 {[%emt 0:00:06]} 26. Rxc4 {[%emt 0:00:50]} Nd7 {[%emt 0:00:12]} 27. Rdc1 {[%emt 0:07:09]} Nb6 {[%emt 0:00:25]} 28. R4c2 {[%emt 0:00:11]} Rxd4 {[%emt 0:00:45]} 29. Nb7 {[%emt 0:05:20]} Rxc2 {[%emt 0:02:09]} 30. Rxc2 {[%emt 0:00:03]} b3 {[%emt 0:02:39]} 31. Rc3 {[%emt 0:01:23]} Rb4 {[%emt 0:11:21]} 1/2-1/2

[Event "Vojvodina Open 2024-A 2024"]
[Site "Novi Sad"]
[Date "2024.06.26"]
[Round "3.11"]
[White "Antic, Dejan"]
[Black "Arvind Ramnath Iyer"]
[Result "1/2-1/2"]
[ECO "E94"]
[WhiteElo "2353"]
[BlackElo "1872"]
[Annotator "RC"]
[PlyCount "75"]
[EventDate "2024.06.03"]
[EventType "swiss"]
[EventCountry "SRB"]
[SourceTitle "playchess.com"]
[Source "ChessBase"]
[SourceQuality "1"]
[TimeControl "40/5400+30:900+30"]

1. Nf3 {[%emt 0:00:07]} Nf6 {[%emt 0:00:09]} 2. c4 {[%emt 0:00:13]} g6 {[%emt 0:00:35]} 3. Nc3 {[%emt 0:00:20]} Bg7 {[%emt 0:00:08]} 4. e4 {[%emt 0:00:24]} d6 {[%emt 0:00:06]} 5. d4 {[%emt 0:00:12]} O-O {[%emt 0:00:08]} 6. Be2 {[%emt 0:00:09]} e5 {[%emt 0:01:10]} 7. O-O {[%emt 0:00:31]} exd4 {[%emt 0:01:16]} 8. Nxd4 {[%emt 0:00:19]} Re8 {[%emt 0:00:08]} 9. f3 {[%emt 0:00:43]} c6 {[%emt 0:00:07]} 10. Kh1 {[%emt 0:07:21]} Nbd7 {[%emt 0:00:43]} 11. Bg5 {[%emt 0:05:37]} Qb6 {[%emt 0:00:50]} 12. Nb3 {[%emt 0:01:00]} a5 {[%emt 0:01:22]} 13. Qd2 {[%emt 0:02:52]} a4 {[%emt 0:00:34]} 14. Be3 {[%emt 0:01:03]} Qd8 {[%emt 0:00:04]} 15. Nd4 {[%emt 0:00:46]} Nc5 {[%emt 0:01:21]} 16. Rad1 {[%emt 0:05:19]} Nfd7 {[%emt 0:02:32]} 17. g4 {[%emt 0:05:51]} Qb6 {[%emt 0:13:30]} 18. Rg1 {[%emt 0:10:13]} a3 {[%emt 0:09:20]} 19. Nf5 {[%emt 0:03:07]} Qxb2 {[%emt 0:18:46]} 20. Nxg7 {[%emt 0:00:41]} Qxd2 {[%emt 0:00:06]} 21. Rxd2 {[%emt 0:00:29]} Kxg7 {[%emt 0:00:03]} 22. Rxd6 {[%emt 0:00:50]} Na4 {[%emt 0:06:55]} 23. Nxa4 {[%emt 0:04:42]} Rxa4 {[%emt 0:00:05]} 24. Rgd1 {[%emt 0:02:11]} Ne5 {[%emt 0:02:36]} 25. Rd8 {[%emt 0:07:33]} Rxd8 {[%emt 0:02:49]} 26. Rxd8 {[%emt 0:00:07]} Be6 {[%emt 0:00:08]} 27. Bd4 {[%emt 0:02:23]} f6 {[%emt 0:00:15]} 28. g5 {[%emt 0:01:47]} Nd7 {[%emt 0:07:32]} 29. f4 {[%emt 0:07:55]} Kf7 {[%emt 0:01:42]} 30. f5 {[%emt 0:01:33]} gxf5 {[%emt 0:02:06]} 31. exf5 {[%emt 0:11:30]} Bxf5 {[%emt 0:00:50]} 32. Bh5+ {[%emt 0:00:34]} Ke7 {[%emt 0:00:06]} 33. Re8+ {[%emt 0:03:32]} Kd6 {[%emt 0:00:05]} 34. Bxf6 {[%emt 0:02:45]} Rxc4 {[%emt 0:01:38]} 35. Be7+ {[%emt 0:00:26]} Kc7 {[%emt 0:00:13]} 36. Bd8+ {[%emt 0:00:33]} Kd6 {[%emt 0:00:09]} 37. Be7+ {[%emt 0:00:07]} Kc7 {[%emt 0:00:05]} 38. Bd8+ {[%emt 0:00:50]} 1/2-1/2

[Event "Vojvodina Open 2024-A 2024"]
[Site "Novi Sad"]
[Date "2024.06.26"]
[Round "3.12"]
[White "Yalcinkaya, Efe"]
[Black "Ashvath Mittal"]
[Result "1-0"]
[ECO "B99"]
[WhiteElo "2070"]
[BlackElo "1986"]
[Annotator "RC"]
[PlyCount "101"]
[EventDate "2024.06.03"]
[EventType "swiss"]
[EventCountry "SRB"]
[SourceTitle "playchess.com"]
[Source "ChessBase"]
[SourceQuality "1"]
[TimeControl "40/5400+30:900+30"]

1. e4 {[%emt 0:00:01]} c5 {[%emt 0:00:01]} 2. Nf3 {[%emt 0:00:06]} d6 {[%emt 0:00:01]} 3. d4 {[%emt 0:00:05]} cxd4 {[%emt 0:00:04]} 4. Nxd4 {[%emt 0:00:03]} Nf6 {[%emt 0:00:04]} 5. Nc3 {[%emt 0:00:04]} a6 {[%emt 0:00:02]} 6. Bg5 {[%emt 0:00:04]} e6 {[%emt 0:00:05]} 7. f4 {[%emt 0:00:06]} Be7 {[%emt 0:00:01]} 8. Qf3 {[%emt 0:00:05]} Qc7 {[%emt 0:00:06]} 9. O-O-O {[%emt 0:00:05]} Nbd7 {[%emt 0:00:09]} 10. g4 {[%emt 0:00:07]} b5 {[%emt 0:00:10]} 11. Bxf6 {[%emt 0:00:15]} Nxf6 {[%emt 0:00:03]} 12. g5 {[%emt 0:00:09]} Nd7 {[%emt 0:00:02]} 13. f5 {[%emt 0:00:23]} Bxg5+ {[%emt 0:00:07]} 14. Kb1 {[%emt 0:00:03]} Ne5 {[%emt 0:00:08]} 15. Qh5 {[%emt 0:00:04]} Bf6 {[%emt 0:00:37]} 16. fxe6 {[%emt 0:00:07]} g6 {[%emt 0:05:53]} 17. Nd5 {[%emt 0:00:04]} Qd8 {[%emt 0:00:03]} 18. Qe2 {[%emt 0:00:07]} Bxe6 {[%emt 0:04:53]} 19. Nxe6 {[%emt 0:00:05]} fxe6 {[%emt 0:00:03]} 20. Nf4 {[%emt 0:00:11]} Qe7 {[%emt 0:13:11]} 21. Bh3 {[%emt 0:00:06]} O-O {[%emt 0:04:10]} 22. Bxe6+ {[%emt 0:04:58]} Kh8 {[%emt 0:02:21]} 23. Bd5 {[%emt 0:02:48]} Nc4 {[%emt 0:15:09]} 24. Bxc4 {[%emt 0:18:41]} bxc4 {[%emt 0:00:08]} 25. Nd5 {[%emt 0:00:30]} Qe5 {[%emt 0:07:41]} 26. Nxf6 {[%emt 0:00:38]} Rab8 {[%emt 0:00:48]} 27. c3 {[%emt 0:01:23]} Rxf6 {[%emt 0:04:15]} 28. Qxc4 {[%emt 0:04:59]} Rf2 {[%emt 0:10:14]} 29. b3 {[%emt 0:00:20]} Re8 {[%emt 0:04:12]} 30. Rd5 {[%emt 0:11:10]} Qxe4+ {[%emt 0:06:01]} 31. Qxe4 {[%emt 0:00:15]} Rxe4 {[%emt 0:00:02]} 32. Rxd6 {[%emt 0:00:08]} a5 {[%emt 0:00:10]} 33. Ra6 {[%emt 0:00:32]} Re5 {[%emt 0:00:45]} 34. Ra7 {[%emt 0:00:45]} Ree2 {[%emt 0:01:43]} 35. Rxa5 {[%emt 0:00:10]} Kg7 {[%emt 0:00:44]} 36. c4 {[%emt 0:05:27]} Kf6 {[%emt 0:02:29]} 37. h4 {[%emt 0:02:16]} h6 {[%emt 0:02:32]} 38. c5 {[%emt 0:01:48]} g5 {[%emt 0:03:19]} 39. c6 {[%emt 0:09:27]} g4 {[%emt 0:00:15]} 40. Ra6 {[%emt 0:00:00]} Rb2+ {[%emt 0:00:00]} 41. Ka1 {[%emt 0:12:24]} Rbc2 {[%emt 0:01:12]} 42. c7+ {[%emt 0:02:43]} Ke5 {[%emt 0:03:07]} 43. Re1+ {[%emt 0:04:10]} Kf4 {[%emt 0:05:35]} 44. Rf6+ {[%emt 0:03:30]} Kg3 {[%emt 0:00:05]} 45. Rg1+ {[%emt 0:00:10]} Rg2 {[%emt 0:00:55]} 46. Rxg2+ {[%emt 0:00:20]} Kxg2 {[%emt 0:00:35]} 47. Rf4 {[%emt 0:00:18]} Rxc7 {[%emt 0:00:59]} 48. Rxg4+ {[%emt 0:00:25]} Kh3 {[%emt 0:00:05]} 49. Rc4 {[%emt 0:01:19]} Rg7 {[%emt 0:00:31]} 50. a4 {[%emt 0:00:04]} h5 {[%emt 0:00:07]} 51. a5 {[%emt 0:00:05]} 1-0

[Event "Vojvodina Open 2024-A 2024"]
[Site "Novi Sad"]
[Date "2024.06.26"]
[Round "3.13"]
[White "Gur, Ali"]
[Black "Leskur, Dejan"]
[Result "1-0"]
[ECO "B07"]
[WhiteElo "1968"]
[BlackElo "2227"]
[Annotator "RC"]
[PlyCount "81"]
[EventDate "2024.06.03"]
[EventType "swiss"]
[EventCountry "SRB"]
[SourceTitle "playchess.com"]
[Source "ChessBase"]
[SourceQuality "1"]
[TimeControl "40/5400+30:900+30"]

1. e4 {[%emt 0:00:03]} g6 {[%emt 0:00:06]} 2. d4 {[%emt 0:00:07]} Bg7 {[%emt 0:00:08]} 3. Nf3 {[%emt 0:00:41]} d6 {[%emt 0:00:06]} 4. Be2 {[%emt 0:00:51]} Nf6 {[%emt 0:00:25]} 5. Nbd2 {[%emt 0:00:40]} O-O {[%emt 0:00:29]} 6. O-O {[%emt 0:00:22]} c5 {[%emt 0:02:05]} 7. c3 {[%emt 0:02:14]} cxd4 {[%emt 0:00:44]} 8. cxd4 {[%emt 0:00:53]} Nc6 {[%emt 0:01:31]} 9. Re1 {[%emt 0:01:35]} Bg4 {[%emt 0:05:17]} 10. d5 {[%emt 0:02:31]} Nb4 {[%emt 0:00:12]} 11. a3 {[%emt 0:01:49]} Na6 {[%emt 0:00:19]} 12. Bxa6 {[%emt 0:01:02]} bxa6 {[%emt 0:00:01]} 13. h3 {[%emt 0:00:12]} Bd7 {[%emt 0:00:31]} 14. Nf1 {[%emt 0:03:06]} Rc8 {[%emt 0:04:49]} 15. Bd2 {[%emt 0:01:36]} Ne8 {[%emt 0:01:02]} 16. e5 {[%emt 0:03:10]} dxe5 {[%emt 0:01:03]} 17. Nxe5 {[%emt 0:00:28]} Bb5 {[%emt 0:01:02]} 18. Bc3 {[%emt 0:01:22]} Nf6 {[%emt 0:00:44]} 19. a4 {[%emt 0:03:31]} Bxf1 {[%emt 0:00:22]} 20. Nc6 {[%emt 0:00:19]} Rxc6 {[%emt 0:00:53]} 21. dxc6 {[%emt 0:00:01]} Bd3 {[%emt 0:09:09]} 22. Re3 {[%emt 0:02:50]} Bf5 {[%emt 0:05:07]} 23. Qxd8 {[%emt 0:01:22]} Rxd8 {[%emt 0:00:07]} 24. c7 {[%emt 0:00:34]} Rc8 {[%emt 0:07:40]} 25. Rd1 {[%emt 0:00:20]} Ne8 {[%emt 0:10:28]} 26. Rd8 {[%emt 0:00:46]} Bf8 {[%emt 0:01:19]} 27. Be5 {[%emt 0:07:09]} Rxc7 {[%emt 0:03:35]} 28. Bxc7 {[%emt 0:07:05]} Nxc7 {[%emt 0:00:08]} 29. Rxe7 {[%emt 0:00:26]} Ne6 {[%emt 0:00:05]} 30. Rb8 {[%emt 0:01:29]} Kg7 {[%emt 0:02:25]} 31. Rxa7 {[%emt 0:00:39]} Nc5 {[%emt 0:00:28]} 32. a5 {[%emt 0:12:50]} Bd3 {[%emt 0:03:07]} 33. b4 {[%emt 0:02:43]} Ne4 {[%emt 0:00:21]} 34. Rd7 {[%emt 0:00:50]} Be2 {[%emt 0:01:29]} 35. f3 {[%emt 0:09:05]} Nf6 {[%emt 0:04:43]} 36. Rd2 {[%emt 0:00:47]} Bc4 {[%emt 0:02:03]} 37. Rc2 {[%emt 0:01:10]} Be6 {[%emt 0:00:41]} 38. b5 {[%emt 0:01:04]} axb5 {[%emt 0:00:04]} 39. a6 {[%emt 0:00:46]} b4 {[%emt 0:00:01]} 40. a7 {[%emt 0:00:00]} b3 {[%emt 0:00:00]} 41. Rc6 {[%emt 0:02:50]} 1-0